[Event "Reykjavik Open 2022"]
[Site "Reykjavik"]
[Date "2022.04.07"]
[Round "3.20"]
[White "Valkama, Eero"]
[Black "Korley, Kassa"]
[Result "0-1"]
[ECO "C42"]
[WhiteElo "2244"]
[BlackElo "2399"]
[Annotator "TA"]
[PlyCount "108"]
[EventDate "2022.04.06"]
[EventCountry "ISL"]
[SourceTitle "playchess.com"]
[Source "ChessBase"]
[SourceQuality "1"]
[TimeControl "40/5400+30:1800+30"]

{[%evp 54,108,0,-13,-7,-12,0,0,0,0,-3,-7,0,0,0,-18,-18,-18,-18,-44,-44,-172,-172,-180,-112,-180,-180,-180,-180,-177,-180,-173,-154,-156,-158,-168,-110,-118,-117,-100,-60,-161,-124,-123,-108,-105,-111,-90,-56,-281,-291,-264,-188,-333,-304,-321,-237]} 1. e4 {[%emt 0:00:04]} e5 {[%emt 0:00:06]} 2. Nf3 {[%emt 0:00:09]} Nf6 {[%emt 0:00:06]} 3. Nxe5 {[%emt 0:00:17]} d6 {[%emt 0:00:05]} 4. Nf3 {[%emt 0:00:20]} Nxe4 {[%emt 0:00:07]} 5. Qe2 {[%emt 0:02:52]} Qe7 {[%emt 0:00:36]} 6. d3 {[%emt 0:00:08]} Nf6 {[%emt 0:00:56]} 7. Bg5 {[%emt 0:00:11]} Nbd7 {[%emt 0:02:04]} 8. Nc3 {[%emt 0:07:25]} Qxe2+ {[%emt 0:10:16]} 9. Bxe2 {[%emt 0:04:13]} h6 {[%emt 0:01:11]} 10. Bd2 {[%emt 0:03:42]} c6 {[%emt 0:12:07]} 11. O-O {[%emt 0:01:08]} d5 {[%emt 0:01:55]} 12. Rfe1 {[%emt 0:00:39]} Bd6 {[%emt 0:05:04]} 13. d4 {[%emt 0:03:48]} O-O {[%emt 0:05:39]} 14. Bd3 {[%emt 0:01:28]} Re8 {[%emt 0:11:19]} 15. Rxe8+ {[%emt 0:00:38]} Nxe8 {[%emt 0:00:04]} 16. Re1 {[%emt 0:02:14]} Nc7 {[%emt 0:00:23]} 17. Ne2 {[%emt 0:02:40]} Ne6 {[%emt 0:09:43]} 18. Nh4 {[%emt 0:09:49]} Nf6 {[%emt 0:02:02]} 19. Nf5 {[%emt 0:02:30]} Bf8 {[%emt 0:00:12]} 20. c3 {[%emt 0:03:59]} h5 {[%emt 0:04:17]} 21. Nf4 {[%emt 0:03:18]} g6 {[%emt 0:02:59]} 22. Nxe6 {[%emt 0:07:46]} Bxe6 {[%emt 0:00:11]} 23. Nh4 {[%emt 0:01:51]} Re8 {[%emt 0:07:11]} 24. Nf3 {[%emt 0:02:30]} Bd6 {[%emt 0:01:37]} 25. Ng5 {[%emt 0:04:39]} Bd7 {[%emt 0:00:14]} 26. Rxe8+ {[%emt 0:00:06]} Nxe8 {[%emt 0:03:41]} 27. Nf3 {[%emt 0:05:18]} Nc7 {[%emt 0:05:09]} 28. Ne1 {[%emt 0:03:53]} Kg7 {[%emt 0:01:04]} 29. h4 {[%emt 0:00:41]} Ne6 {[%emt 0:00:52]} 30. g3 {[%emt 0:00:20]} f6 {[%emt 0:00:55]} 31. Kg2 {[%emt 0:02:01]} Kf7 {[%emt 0:00:15]} 32. Nc2 {[%emt 0:04:30]} Ng7 {[%emt 0:00:06]} 33. Ne3 {[%emt 0:01:55]} g5 {[%emt 0:00:35]} 34. Kf3 {[%emt 0:02:23]} gxh4 {[%emt 0:01:58]} 35. gxh4 {[%emt 0:00:02]} Bh3 {[%emt 0:01:36]} 36. Ke2 {[%emt 0:06:52]} f5 {[%emt 0:03:43]} 37. Kf3 {[%emt 0:09:04]} (37. f3 $15) 37... f4 $19 {[%emt 0:00:45]} 38. Nf1 {[%emt 0:00:09] [#]} Bg4+ $1 {[%emt 0:01:34]} 39. Kg2 {[%emt 0:00:02]} Nf5 {[%emt 0:04:14]} 40. Bxf5 {[%emt 0:00:00]} f3+ {[%emt 0:00:00]} 41. Kg1 {[%emt 0:00:24]} Bxf5 {[%emt 0:02:31]} 42. Bg5 {[%emt 0:01:25]} Kg6 {[%emt 0:01:40]} 43. Nd2 {[%emt 0:18:04]} Be4 {[%emt 0:10:54]} 44. Kf1 {[%emt 0:06:40]} Bd3+ {[%emt 0:02:44]} (44... Kf5 $19 45. Ke1 b6) 45. Ke1 $17 {[%emt 0:00:07]} Be2 {[%emt 0:00:03]} 46. Nb3 {[%emt 0:06:15]} b6 {[%emt 0:02:51]} 47. Nc1 {[%emt 0:00:08]} ({White should try} 47. Kd2 $1 $15) 47... Ba6 {[%emt 0:01:03]} 48. Kd2 {[%emt 0:00:10]} Kf5 {[%emt 0:00:44]} 49. Ke3 {[%emt 0:00:47]} Kg4 {[%emt 0:00:09]} 50. Nb3 {[%emt 0:00:54]} Be2 {[%emt 0:00:45]} 51. Nd2 $2 {[%emt 0:00:30]} (51. Na1 $15) 51... c5 $19 {[%emt 0:01:35]} 52. a3 {[%emt 0:00:27]} c4 {[%emt 0:02:21]} 53. Nb1 {[%emt 0:00:23]} (53. a4 $142) 53... Kh3 {[%emt 0:00:21]} 54. Nd2 {[%emt 0:01:32] [#]} Kg2 $1 {[%emt 0:00:07]} 0-1

[Event "Reykjavik Open 2022"]
[Site "Reykjavik"]
[Date "2022.04.07"]
[Round "3.21"]
[White "Mishra, Abhimanyu"]
[Black "Marie, Maxime"]
[Result "1-0"]
[ECO "E11"]
[WhiteElo "2505"]
[BlackElo "2175"]
[Annotator "TA"]
[PlyCount "47"]
[EventDate "2022.04.06"]
[EventCountry "ISL"]
[SourceTitle "playchess.com"]
[Source "ChessBase"]
[SourceQuality "1"]
[TimeControl "40/5400+30:1800+30"]

{[%evp 10,47,24,24,32,19,19,25,27,23,25,23,31,25,29,23,52,31,32,37,44,45,52,5,47,37,33,13,380,379,393,397,404,393,727,711,29988,29989,29989,29990]} 1. d4 {[%emt 0:00:02]} Nf6 {[%emt 0:00:21]} 2. c4 {[%emt 0:00:10]} e6 {[%emt 0:00:05]} 3. Nf3 {[%emt 0:00:10]} Bb4+ {[%emt 0:00:22]} 4. Bd2 {[%emt 0:00:14]} a5 {[%emt 0:00:14]} 5. a3 {[%emt 0:01:17]} Bxd2+ {[%emt 0:00:21]} 6. Qxd2 {[%emt 0:00:27]} b6 {[%emt 0:01:42] E11: Bogo-Indian.} 7. Nc3 {[%emt 0:10:00]} d5 {[%emt 0:02:02]} 8. cxd5 {[%emt 0:02:56] [#]} exd5 $146 {[%emt 0:00:13] White has an edge.} ({Predecessor:} 8... Nxd5 9. g3 Bb7 10. Bg2 Nd7 11. O-O Nxc3 12. Qxc3 O-O 13. Rfd1 Rc8 14. b4 axb4 15. axb4 {½-½ (39) Skurikhin,D (2354)-Zivanovic,D (1931) Belgrade 2012}) 9. g3 {[%emt 0:00:29]} O-O {[%emt 0:04:17]} 10. Bg2 {[%emt 0:00:17]} Re8 {[%emt 0:02:24]} 11. Qc2 {[%emt 0:07:58]} g6 {[%emt 0:10:17]} 12. O-O {[%emt 0:02:43]} Bf5 {[%emt 0:02:29]} 13. Qb3 {[%emt 0:01:38]} c6 {[%emt 0:28:38]} 14. Ne5 {[%emt 0:10:38]} Ra7 {[%emt 0:02:06]} 15. Rac1 {[%emt 0:05:03]} b5 {[%emt 0:05:39]} 16. e3 {[%emt 0:08:50]} (16. Nd1 $14) 16... Ng4 {[%emt 0:05:30] [#]} 17. Nxc6 $1 {[%emt 0:12:07]} Nxc6 {[%emt 0:00:14]} 18. Nxb5 {[%emt 0:00:12][%cal Bc3b5,Bb5d6,Bd6e8][%mdl 32]} Qb8 $2 {[%emt 0:15:07][%mdl 8192] Black cannot hold the game after this.} 19. Rxc6 $18 {[%emt 0:05:48]} a4 {[%emt 0:00:59]} 20. Qxd5 {[%emt 0:06:00]} Ra5 {[%emt 0:00:23]} 21. Rc5 {[%emt 0:01:32]} ({Inferior is} 21. Rc7 Be6 22. Qd6 Rxb5 $15) 21... Bd3 $2 {[%emt 0:02:13] [#]} (21... Be6 22. Qb7 Qxb7 23. Bxb7 Rb8) 22. Nd6 {[%emt 0:00:51]} Rxc5 {[%emt 0:02:09]} 23. Qxf7+ {[%emt 0:01:13]} Kh8 {[%emt 0:00:05]} 24. Nxe8 {[%emt 0:00:06] Weighted Error Value: White=0.07 (flawless) /Black=0.98} 1-0

[Event "Reykjavik Open 2022"]
[Site "Reykjavik"]
[Date "2022.04.07"]
[Round "3.22"]
[White "Domalchuk-Jonasson, Aleksandr"]
[Black "Thorhallsson, Throstur"]
[Result "1/2-1/2"]
[ECO "D36"]
[WhiteElo "2162"]
[BlackElo "2414"]
[Annotator "TA"]
[PlyCount "71"]
[EventDate "2022.04.06"]
[EventCountry "ISL"]
[SourceTitle "playchess.com"]
[Source "ChessBase"]
[SourceQuality "1"]
[TimeControl "40/5400+30:1800+30"]

{[%evp 21,71,19,13,13,16,11,22,22,11,17,31,27,27,24,20,14,22,8,17,0,0,0,0,0,0,0,1,0,0,0,0,0,0,0,0,0,0,0,7,0,0,0,0,0,0,0,0,0,0,0,0,0]} 1. d4 {[%emt 0:00:03]} Nf6 {[%emt 0:00:57]} 2. c4 {[%emt 0:00:21]} e6 {[%emt 0:00:07]} 3. Nc3 {[%emt 0:00:15]} d5 {[%emt 0:00:07]} 4. cxd5 {[%emt 0:00:23]} exd5 {[%emt 0:00:06]} 5. Bg5 {[%emt 0:00:09]} c6 {[%emt 0:00:31]} 6. e3 {[%emt 0:00:29]} Be7 {[%emt 0:00:26]} 7. Bd3 {[%emt 0:00:19]} Nbd7 {[%emt 0:00:43]} 8. Qc2 {[%emt 0:00:42]} Nh5 {[%emt 0:01:46]} 9. Bxe7 {[%emt 0:01:34]} Qxe7 {[%emt 0:04:51]} 10. Nge2 {[%emt 0:00:38]} g6 {[%emt 0:00:40]} 11. O-O {[%emt 0:02:43]} O-O {[%emt 0:00:52]} 12. Rab1 {[%emt 0:00:57]} a5 {[%emt 0:03:33]} 13. a3 {[%emt 0:00:44]} Ng7 {[%emt 0:05:39]} 14. b4 {[%emt 0:01:43]} axb4 {[%emt 0:03:22]} 15. axb4 {[%emt 0:00:07]} Nb6 {[%emt 0:03:29]} 16. b5 {[%emt 0:21:05] Strongly threatening bxc6.} c5 {[%emt 0:01:54]} 17. dxc5 {[%emt 0:01:08]} Qxc5 {[%emt 0:00:06]} 18. Nf4 {[%emt 0:15:03][%cal Oc3d5]} d4 {[%emt 0:15:03]} 19. exd4 {[%emt 0:03:17]} Qxd4 {[%emt 0:00:13]} 20. Be4 {[%emt 0:10:11]} Bf5 $1 {[%emt 0:03:44]} 21. Rbd1 {[%emt 0:08:26]} Qc4 {[%emt 0:06:08]} 22. Qd3 {[%emt 0:09:55]} Rac8 {[%emt 0:09:48]} 23. Nfd5 {[%emt 0:07:22]} Qxd3 {[%emt 0:17:29]} 24. Rxd3 {[%emt 0:03:05]} Nxd5 {[%emt 0:06:03]} 25. Nxd5 {[%emt 0:00:21]} Bxe4 {[%emt 0:01:57]} 26. Nf6+ {[%emt 0:00:05]} Kh8 {[%emt 0:00:03]} 27. Nxe4 {[%emt 0:00:16]} Ne6 {[%emt 0:02:25]} 28. Rd7 {[%emt 0:01:29]} Rc7 {[%emt 0:02:19]} 29. Rfd1 {[%emt 0:03:53]} Rfc8 {[%emt 0:03:18] aiming for ...Rxd7.} 30. h4 {[%emt 0:03:00] Threatens to win with b6.} Rxd7 {[%emt 0:02:28]} 31. Rxd7 {[%emt 0:00:04] And now b6 would win.} Rc7 {[%emt 0:00:36]} 32. Rxc7 {[%emt 0:03:25]} Nxc7 $11 {[%emt 0:00:04] KN-KN} 33. Nd6 {[%emt 0:00:49][%csl LRb7,LRf7]} Kg7 {[%emt 0:01:16]} 34. b6 {[%emt 0:00:11]} Nd5 {[%emt 0:00:06]} 35. Nxb7 {[%emt 0:00:05]} Nxb6 {[%emt 0:00:04]} 36. Nc5 {[%emt 0:00:06]} 1/2-1/2

[Event "Reykjavik Open 2022"]
[Site "Reykjavik"]
[Date "2022.04.07"]
[Round "3.23"]
[White "Willow, Jonah B"]
[Black "Coursaget, Nicolas"]
[Result "1-0"]
[ECO "B12"]
[WhiteElo "2365"]
[BlackElo "2185"]
[Annotator "TA"]
[PlyCount "70"]
[EventDate "2022.04.06"]
[EventCountry "ISL"]
[SourceTitle "playchess.com"]
[Source "ChessBase"]
[SourceQuality "1"]
[TimeControl "40/5400+30:1800+30"]

{[%evp 27,70,11,13,3,28,-23,-32,-36,-34,-34,-26,-50,-12,-29,-18,-20,7,0,114,93,99,84,103,77,190,177,184,181,196,195,200,97,167,144,225,197,300,255,271,205,395,258,390,249,256]} 1. e4 {[%emt 0:00:03]} c6 {[%emt 0:00:13]} 2. d4 {[%emt 0:00:13]} d5 {[%emt 0:01:21]} 3. e5 {[%emt 0:00:14]} c5 {[%emt 0:02:40]} 4. dxc5 {[%emt 0:00:26]} Nc6 {[%emt 0:01:54]} 5. Nf3 {[%emt 0:01:30]} Bg4 {[%emt 0:03:54]} 6. c3 {[%emt 0:01:27]} Bxf3 {[%emt 0:09:32]} 7. Qxf3 {[%emt 0:00:32]} e6 {[%emt 0:00:16]} 8. b4 {[%emt 0:01:02]} Nxe5 {[%emt 0:01:21]} 9. Bb5+ {[%emt 0:00:07]} Nc6 {[%emt 0:00:11]} 10. O-O {[%emt 0:00:10]} Be7 {[%emt 0:05:03]} 11. Bf4 {[%emt 0:02:25]} Bf6 {[%emt 0:00:54]} 12. Nd2 {[%emt 0:00:51]} Nge7 {[%emt 0:02:14]} 13. Rad1 {[%emt 0:03:26]} Qc8 {[%emt 0:01:29]} 14. Rfe1 {[%emt 0:03:44]} O-O {[%emt 0:01:52]} 15. Bd6 {[%emt 0:03:39]} Rd8 {[%emt 0:04:18]} 16. Bxc6 {[%emt 0:04:38]} (16. Qh3 $142 $1) 16... Qxc6 $11 {[%emt 0:09:52]} 17. Nb3 {[%emt 0:02:48]} Qa4 {[%emt 0:03:15]} 18. Rd2 {[%emt 0:16:12]} Nc6 {[%emt 0:05:31]} 19. Qd3 {[%emt 0:04:35]} Rd7 {[%emt 0:06:02]} 20. Rb1 {[%emt 0:03:57]} (20. f4 $5 {[%cal Rf4f5]}) 20... Rc8 {[%emt 0:10:54]} 21. f4 {[%emt 0:05:15]} a6 {[%emt 0:04:21]} 22. f5 {[%emt 0:03:28]} exf5 {[%emt 0:05:41]} (22... Re8 $11 {keeps the balance.}) 23. Qxf5 $16 {[%emt 0:02:11]} Rcd8 {[%emt 0:01:21]} 24. Re2 {[%emt 0:10:54]} ({But not} 24. Rxd5 $2 Ne7 25. Qf3 Nxd5 26. Qxd5 Bxc3 $19) (24. Qxd5 Bxc3 25. Re2 h6 $17) 24... Ne7 {[%emt 0:04:09]} (24... Bxc3 $2 {[#]} 25. Qxd7 $3 {[%mdl 512]} h6 26. Qxb7 $18) 25. Qf3 {[%emt 0:05:30]} Rxd6 {[%emt 0:06:27]} (25... h6 $16 {was called for.}) 26. cxd6 $18 {[%emt 0:00:09]} Rxd6 {[%emt 0:00:02]} 27. Rbe1 {[%emt 0:00:35]} Qd7 {[%emt 0:01:37]} 28. Nc5 {[%emt 0:01:40]} Qc7 {[%emt 0:02:55]} 29. Qf4 {[%emt 0:02:14]} (29. c4 $18 {has better winning chances.}) 29... g5 {[%emt 0:03:26]} (29... Rd7 $16 {was worth a try.} 30. Qf3 Rd8) 30. Qg3 $18 {[%emt 0:01:49]} Ng6 {[%emt 0:00:45]} (30... Nf5 $16 31. Qf2 Ng7) 31. Nxb7 $18 {[%emt 0:00:48]} Qb6+ {[%emt 0:00:07]} (31... Rc6 {is a better defense.}) 32. Nc5 {[%emt 0:00:37]} d4 {[%emt 0:01:56]} 33. Kh1 {[%emt 0:02:42]} Nf4 $2 {[%emt 0:00:53]} (33... dxc3 34. Ne4 Rd8) 34. Re8+ $18 {[%emt 0:01:03]} Kg7 {[%emt 0:00:01]} 35. Ne4 {[%emt 0:00:23]} dxc3 {[%emt 0:01:06]} 1-0

[Event "Reykjavik Open 2022"]
[Site "Reykjavik"]
[Date "2022.04.07"]
[Round "3.24"]
[White "Baskin, Robert"]
[Black "Decosse, Jean-Fabien"]
[Result "1/2-1/2"]
[ECO "C41"]
[WhiteElo "2383"]
[BlackElo "2156"]
[Annotator "TA"]
[PlyCount "56"]
[EventDate "2022.04.06"]
[EventCountry "ISL"]
[SourceTitle "playchess.com"]
[Source "ChessBase"]
[SourceQuality "1"]
[TimeControl "40/5400+30:1800+30"]

{[%evp 18,56,38,35,37,46,48,46,39,52,54,41,75,61,59,22,31,36,28,23,28,30,18,29,36,0,0,0,0,-18,-19,-10,-33,-31,-7,-8,-2,-14,0,-6,0]} 1. e4 {[%emt 0:00:03]} d6 {[%emt 0:00:05]} 2. d4 {[%emt 0:00:19]} Nf6 {[%emt 0:00:06]} 3. Nc3 {[%emt 0:00:05]} e5 {[%emt 0:00:05]} 4. Nf3 {[%emt 0:00:31]} Nbd7 {[%emt 0:00:09]} 5. Bc4 {[%emt 0:00:07]} Be7 {[%emt 0:00:09]} 6. a4 {[%emt 0:00:07]} O-O {[%emt 0:00:23]} 7. O-O {[%emt 0:00:05]} a5 {[%emt 0:00:18]} 8. h3 {[%emt 0:00:59]} c6 {[%emt 0:00:06]} 9. Re1 {[%emt 0:00:22]} exd4 {[%emt 0:00:09]} 10. Qxd4 {[%emt 0:00:48]} Nc5 {[%emt 0:02:21] C41: Philidor Defence.} 11. Bf4 {[%emt 0:00:43]} Ne6 {[%emt 0:01:41]} 12. Bxe6 {[%emt 0:00:53]} Bxe6 {[%emt 0:01:09] White is slightly better.} 13. Rad1 {[%emt 0:00:38][%cal Rf4d6]} d5 {[%emt 0:01:18]} 14. exd5 {[%emt 0:00:17]} cxd5 {[%emt 0:01:36]} 15. Ng5 {[%emt 0:15:20] 0x0.0001e11bf296dp-1022s more active pieces. Pair of Knights!} Bf5 {[%emt 0:04:35]} 16. Qe5 {[%emt 0:01:49]} ({Reject} 16. Nxd5 Nxd5 17. Qxd5 Bxc2 18. Qxd8 Raxd8 19. Rxd8 Bxd8 $15) (16. Re2 $5 {[%cal Rd4e5]} Bb4 17. Nxd5 $16) 16... Bxc2 {[%emt 0:00:12]} 17. Qxe7 {[%emt 0:34:02]} Qxe7 {[%emt 0:00:35]} 18. Rxe7 {[%emt 0:00:04] [#] Hoping for Rd4.} Bxd1 {[%emt 0:00:05]} 19. Nxd1 {[%emt 0:00:04]} Rfe8 {[%emt 0:01:20]} 20. Rxe8+ {[%emt 0:00:57]} Rxe8 {[%emt 0:00:12] [#]} 21. Bd2 $146 {[%emt 0:02:20] Against Re1+} ({Predecessor:} 21. Be3 d4 22. Bd2 Rc8 23. Kf1 d3 24. Ke1 Nd5 25. Nf3 b6 26. b3 {1-0 (40) Kaidanov,G (2596)-Georgiev,V (2560) Chicago 2002}) 21... Ne4 {[%emt 0:07:26]} 22. Nxe4 {[%emt 0:01:49]} Rxe4 {[%emt 0:00:37]} 23. Kf1 {[%emt 0:01:13]} Rxa4 {[%emt 0:09:03]} 24. Ke2 {[%emt 0:00:19]} d4 {[%emt 0:15:26] Against Ne3} 25. f3 {[%emt 0:01:25]} f5 {[%emt 0:11:39]} 26. Nf2 {[%emt 0:02:40] The position is equal.} Kf7 {[%emt 0:01:17]} 27. Nd3 {[%emt 0:00:58]} b6 {[%emt 0:01:27]} 28. Bf4 {[%emt 0:01:13]} Ke6 {[%emt 0:07:05] Weighted Error Value: White=0.08 (flawless) /Black=0.03 (flawless)} 1/2-1/2

[Event "Reykjavik Open 2022"]
[Site "Reykjavik"]
[Date "2022.04.07"]
[Round "3.25"]
[White "Kull, Florian"]
[Black "Sukandar, Irine Kharisma"]
[Result "0-1"]
[ECO "A36"]
[WhiteElo "2138"]
[BlackElo "2378"]
[Annotator "TA"]
[PlyCount "80"]
[EventDate "2022.04.06"]
[EventCountry "ISL"]
[SourceTitle "playchess.com"]
[Source "ChessBase"]
[SourceQuality "1"]
[TimeControl "40/5400+30:1800+30"]

{[%evp 34,80,0,0,0,-88,-85,-81,-69,-75,-28,-29,23,18,27,22,29,27,12,0,75,82,114,98,206,180,155,68,80,0,51,-100,50,37,50,0,0,0,0,0,0,-257,-252,-29981,-29982,-29982,-29981,-29981,-4610]} 1. c4 {[%emt 0:01:48]} c5 {[%emt 0:00:24]} 2. Nc3 {[%emt 0:00:13]} Nc6 {[%emt 0:00:21]} 3. g3 {[%emt 0:01:08]} g6 {[%emt 0:00:17]} 4. Bg2 {[%emt 0:00:11]} Bg7 {[%emt 0:00:11]} 5. a3 {[%emt 0:00:17]} d6 {[%emt 0:01:51]} 6. Rb1 {[%emt 0:00:22]} e6 {[%emt 0:01:25]} 7. e3 {[%emt 0:03:27]} Nge7 {[%emt 0:05:04]} 8. Nge2 {[%emt 0:02:17]} O-O {[%emt 0:03:13]} 9. O-O {[%emt 0:09:37]} b6 {[%emt 0:10:31]} 10. b4 {[%emt 0:03:56]} d5 {[%emt 0:17:01]} 11. d4 {[%emt 0:09:15]} cxd4 {[%emt 0:08:46]} 12. exd4 {[%emt 0:03:49]} Bb7 {[%emt 0:00:27]} 13. b5 {[%emt 0:05:54]} Na5 {[%emt 0:00:37]} 14. c5 {[%emt 0:00:16]} bxc5 {[%emt 0:03:51]} 15. dxc5 {[%emt 0:00:25]} d4 {[%emt 0:00:40]} 16. Ne4 {[%emt 0:07:13]} Bd5 {[%emt 0:01:33]} 17. Nd6 {[%emt 0:11:42]} Bxg2 {[%emt 0:02:36]} 18. Kxg2 {[%emt 0:00:05]} Qc7 {[%emt 0:01:48]} 19. Bd2 {[%emt 0:08:14]} ({Much worse is} 19. Nxd4 Qxc5 20. Nf3 Nd5 $17) (19. Ne4 $11 {remains equal.}) 19... Qxc5 $17 {[%emt 0:01:10]} 20. Bb4 {[%emt 0:00:17]} Qd5+ {[%emt 0:07:14]} 21. Kg1 {[%emt 0:00:36] [#]} e5 {[%emt 0:00:38]} (21... Be5 $1 $17 22. Bxa5 Qxd6) 22. Re1 $1 $11 {[%emt 0:09:18] [#]} Nb7 {[%emt 0:11:49]} (22... Rfd8 $142 $1 23. Qa4 (23. Bxa5 Rxd6) 23... Rxd6 24. Bxd6 Qxd6 25. Qxa5 Nd5) 23. Nxd4 $11 {[%emt 0:07:05]} exd4 {[%emt 0:03:19]} 24. Nxb7 {[%emt 0:00:33]} Qxb7 {[%emt 0:00:04]} 25. Rxe7 {[%emt 0:01:33]} Qd5 {[%emt 0:04:46]} 26. Qd3 {[%emt 0:00:41]} Bf6 {[%emt 0:01:40]} (26... Rfc8 $11) 27. Rc7 $16 {[%emt 0:01:59]} Rfe8 {[%emt 0:01:13]} 28. Rbc1 {[%emt 0:01:45]} h5 {[%emt 0:03:04]} (28... Be5 $16) 29. R1c5 $18 {[%emt 0:00:42]} Qe4 {[%emt 0:05:08]} 30. Qb3 {[%emt 0:01:24]} (30. Qxe4 $16 {White threatens Qf3 and mate.} Rxe4 31. Rd5) 30... Re6 $14 {[%emt 0:00:38]} 31. R5c6 {[%emt 0:00:46]} ({White should play} 31. Qd5 $16) 31... h4 {[%emt 0:00:54]} ({Black should try} 31... d3 $11) 32. gxh4 $2 {[%emt 0:02:58] [#]} (32. Rxe6 $14 {stays ahead.} fxe6 33. f3) 32... Bxh4 {[%emt 0:00:52]} (32... Rae8 $1 $17 {Hoping for ...d3.} 33. Rxe6 Rxe6) 33. Rxe6 $14 {[%emt 0:03:06]} fxe6 {[%emt 0:00:04]} 34. Qh3 {[%emt 0:03:06]} (34. f3 $1 $14 Qe2 35. Rc2) 34... Re8 {[%emt 0:01:30]} 35. Qg2 {[%emt 0:00:48]} Qb1+ {[%emt 0:00:45]} 36. Qf1 {[%emt 0:00:02]} Qf5 {[%emt 0:00:22]} 37. Rc5 $2 {[%emt 0:01:24][%mdl 8192]} (37. Qg2 $11) 37... Qg4+ $19 {[%emt 0:01:31]} 38. Qg2 $2 {[%emt 0:00:02]} (38. Kh1 $19 Rf8 39. a4) 38... Qd1+ {[%emt 0:00:56]} ({Not} 38... Bxf2+ 39. Kf1 Qxg2+ 40. Kxg2 $11) 39. Qf1 {[%emt 0:00:01]} Bxf2+ $1 {[%emt 0:01:04]} 40. Kg2 {[%emt 0:00:00]} Qg4+ {[%emt 0:00:00]} 0-1

[Event "Reykjavik Open 2022"]
[Site "Reykjavik"]
[Date "2022.04.07"]
[Round "3.26"]
[White "Martin, Julian"]
[Black "Sigeman, Johan"]
[Result "1-0"]
[ECO "C81"]
[WhiteElo "2388"]
[BlackElo "2136"]
[Annotator "TA"]
[PlyCount "97"]
[EventDate "2022.04.06"]
[EventCountry "ISL"]
[SourceTitle "playchess.com"]
[Source "ChessBase"]
[SourceQuality "1"]
[TimeControl "40/5400+30:1800+30"]

{[%evp 52,97,114,112,111,95,150,129,166,98,127,147,129,86,149,126,203,212,232,210,227,228,225,0,198,152,194,80,101,0,184,168,200,69,339,325,281,277,927,911,923,931,916,919,2525,2146,29979,2462]} 1. e4 {[%emt 1:31:00]} e5 {[%emt 1:31:00]} 2. Nf3 {[%emt 0:00:30]} Nc6 {[%emt 0:00:00]} 3. Bb5 {[%emt 0:00:00]} a6 {[%emt 0:00:00]} 4. Ba4 {[%emt 0:00:00]} Nf6 {[%emt 0:00:00]} 5. O-O {[%emt 0:00:00]} Nxe4 {[%emt 0:00:00]} 6. d4 {[%emt 0:00:00]} b5 {[%emt 0:00:00]} 7. Bb3 {[%emt 0:00:00]} d5 {[%emt 0:00:00]} 8. dxe5 {[%emt 0:00:00]} Be6 {[%emt 0:00:00]} 9. Qe2 {[%emt 0:00:00]} Be7 {[%emt 0:00:00]} 10. Rd1 {[%emt 0:00:00]} O-O {[%emt 0:00:00]} 11. c4 {[%emt 0:00:00]} bxc4 {[%emt 0:00:00]} 12. Bxc4 {[%emt 0:00:00]} Bc5 {[%emt 0:00:00]} 13. Be3 {[%emt 0:00:00]} Bxe3 {[%emt 0:00:00]} 14. Qxe3 {[%emt 0:00:00]} Qb8 {[%emt 0:00:00]} 15. Bb3 {[%emt 0:00:00]} Na5 {[%emt 0:00:00]} 16. Nd4 {[%emt 0:00:00]} Nxb3 {[%emt 0:00:00]} 17. Nxb3 {[%emt 0:00:00]} Qb6 {[%emt 0:00:00]} 18. Qxb6 {[%emt 0:00:00]} cxb6 {[%emt 0:00:00]} 19. f3 {[%emt 0:00:00]} Nc5 {[%emt 0:00:00]} 20. Nd4 {[%emt 0:00:00]} Rac8 {[%emt 0:00:00]} 21. Nc3 {[%emt 0:00:00]} Rfd8 {[%emt 0:00:00]} 22. Rac1 {[%emt 0:00:00]} h5 {[%emt 0:00:00]} 23. Nce2 {[%emt 0:00:00]} g6 {[%emt 0:00:00]} 24. Nf4 {[%emt 0:00:00]} Re8 {[%emt 0:00:00]} 25. Ndxe6 {[%emt 0:00:00]} fxe6 {[%emt 0:00:00]} 26. Nxg6 {[%emt 0:00:00]} Kf7 {[%emt 0:00:00]} 27. Nf4 {[%emt 0:00:00]} h4 {[%emt 0:00:00]} 28. g4 {[%emt 0:00:00]} Nd7 {[%emt 0:00:00]} ({Black should play} 28... hxg3 29. hxg3 Nd7) 29. Nd3 $16 {[%emt 0:00:00]} Nc5 {[%emt 0:00:00]} 30. Nxc5 {[%emt 0:00:00]} ({White should try} 30. Rc3 $18) 30... Rxc5 {[%emt 0:00:00]} 31. Rxc5 {[%emt 0:00:00]} bxc5 {[%emt 0:00:00]} 32. b3 {[%emt 0:00:00]} Rb8 {[%emt 0:00:00]} (32... Kg6 $142) 33. Rc1 {[%emt 0:00:00]} Rb5 {[%emt 0:00:00]} (33... Kg6 $16 34. Rxc5 Kg5) 34. Kg2 $1 $18 {[%emt 0:00:00]} Kg6 {[%emt 0:00:00]} 35. f4 {[%emt 0:00:00]} Rb4 {[%emt 0:00:00]} 36. Kf3 {[%emt 0:00:00]} (36. Rxc5 Rxf4 37. Kh3 Kg5 $11) 36... Rb5 {[%emt 0:00:00]} 37. Kg2 {[%emt 0:07:02]} Rb4 {[%emt 0:00:00]} 38. Rf1 $1 {[%emt 0:00:27]} ({And not} 38. Rxc5 Rxf4 39. Kh3 Kg5 $11) 38... Re4 {[%emt 0:00:00]} 39. Kf3 {[%emt 0:04:06]} (39. Kh3 $1 $18 {and White stays clearly on top.}) 39... Rb4 $16 {[%emt 0:00:00]} 40. Kg2 {[%emt 0:00:00]} (40. Rf2 $16) 40... Re4 $1 $18 {[%emt 0:00:00] [#]} 41. Kh3 $1 {[%emt 0:06:03]} Re2 {[%emt 0:02:53]} 42. f5+ {[%emt 0:01:32]} ({Don't play} 42. Kxh4 $6 Rxh2+ 43. Kg3 Rxa2 $14) ({Better is} 42. Rc1 $18) 42... Kf7 $2 {[%emt 0:01:18][%mdl 8192]} (42... exf5 $1 $14 43. gxf5+ Kf7) 43. f6 $18 {[%emt 0:01:16]} ({Less strong is} 43. Kxh4 Rxa2 44. Kg3 Re2 $16) 43... Rxe5 {[%emt 0:03:59]} 44. Kxh4 {[%emt 0:01:06]} Re2 $2 {[%emt 0:01:54]} (44... c4) 45. h3 $18 {[%emt 0:00:52]} d4 {[%emt 0:05:09]} 46. g5 {[%emt 0:04:32]} Rg2 {[%emt 0:03:07] [#]} 47. Rf3 $1 {[%emt 0:02:02]} e5 {[%emt 0:02:15]} 48. Rg3 {[%emt 0:00:07]} Rxg3 {[%emt 0:00:48]} 49. Kxg3 {[%emt 0:00:29]} 1-0